fUST/lending_fUST_20260123
["ID","MTS","AMOUNT","RATE_DAILY","PERIOD"]
[403095667,1769153638217,500.0,0.00012579,2]
[403095668,1769153638296,500.0,0.00012579,2]
[403095669,1769153638375,500.0,0.00012579,2]
[403095670,1769153638452,500.0,0.00012579,2]
[403095671,1769153638529,500.0,0.00012579,2]
[403095672,1769153638610,423.5100661,0.00012579,2]
[403095673,1769153638691,76.5099339,0.00012579,2]
[403095674,1769153638763,423.4900661,0.00012579,2]
[403095675,1769153638835,500.0,0.00012579,2]
[403095676,1769153638907,500.0,0.00012579,2]
[403095677,1769153638983,500.0,0.00012579,2]
[403095678,1769153639058,500.0,0.00012579,2]
[403095679,1769153639133,500.0,0.00012579,2]
[403095680,1769153639215,500.0,0.00012579,2]
[403095681,1769153639306,500.0,0.00012579,2]
[403095682,1769153639380,500.0,0.00012579,2]
[403095683,1769153639463,500.0,0.00012579,2]
[403095684,1769153639541,500.0,0.00012579,2]
[403095685,1769153639617,500.0,0.00012579,2]
[403095686,1769153639707,500.0,0.00012579,2]
[403095687,1769153639781,500.0,0.00012579,2]
[403095688,1769153639856,500.0,0.00012579,2]
[403095689,1769153639995,500.0,0.00012579,2]
[403095690,1769153640078,500.0,0.00012579,2]
[403095691,1769153640174,500.0,0.00012579,2]
[403095692,1769153640266,500.0,0.00012579,2]
[403095693,1769153640353,500.0,0.00012579,2]
[403095694,1769153640440,76.5199339,0.00012579,2]
[403095695,1769153640513,423.4800661,0.00012579,2]
[403095696,1769153640597,500.0,0.00012579,2]
[403095697,1769153640684,500.0,0.00012579,2]
[403095698,1769153640766,500.0,0.00012579,2]
[403095699,1769153640855,500.0,0.00012579,2]
[403095700,1769153642965,300.0,0.00012578,2]
[403095701,1769153678765,199.57,8.708e-05,2]
[403095702,1769153679187,399.14,9.499e-05,2]
[403095703,1769153679581,598.7,0.00010291,2]
[403095704,1769153680231,798.27,0.00011082,2]
[403095705,1769153680411,997.84,0.00011874,2]
[403095706,1769153681023,-250.20523355,0.00012464,2]
[403095707,1769153683545,-744.26363585,0.00012464,2]
[403095708,1769153699291,-500.0,0.00012579,2]
[403095709,1769153699371,-500.0,0.00012579,2]
[403095710,1769153699439,-500.0,0.00012579,2]
[403095711,1769153699825,-500.0,0.00012579,2]
[403095712,1769153699895,-500.0,0.00012579,2]
[403095713,1769153699965,-500.0,0.00012579,2]
[403095714,1769153700038,-500.0,0.00012579,2]
[403095715,1769153700116,-500.0,0.00012579,2]
[403095716,1769153700207,-641.8543348,0.00012579,2]
[403095717,1769153700300,-216.3013304,0.00012579,2]
[403095718,1769153700679,-283.6986696,0.00012579,2]
[403095719,1769153700756,-500.0,0.00012579,2]
[403095720,1769153700831,-500.0,0.00012579,2]
[403095721,1769153700905,-500.0,0.00012579,2]
[403095722,1769153700980,-500.0,0.00012579,2]
[403095723,1769153701050,-500.0,0.00012579,2]
[403095724,1769153701123,-500.0,0.00012579,2]
[403095725,1769153701194,-500.0,0.00012579,2]
[403095726,1769153701267,-500.0,0.00012579,2]
[403095727,1769153701339,-500.0,0.00012579,2]
[403095728,1769153701498,-500.0,0.00012579,2]
[403095729,1769153701564,-500.0,0.00012579,2]
[403095730,1769153701630,-500.0,0.00012579,2]
[403095731,1769153701699,-500.0,0.00012579,2]
[403095732,1769153701769,-500.0,0.00012579,2]
[403095733,1769153701838,-500.0,0.00012579,2]
[403095734,1769153701930,-500.0,0.00012579,2]
[403095735,1769153702014,-500.0,0.00012579,2]
[403095736,1769153702086,-500.0,0.00012579,2]
[403095737,1769153702157,-500.0,0.00012579,2]
[403095738,1769153702578,-500.0,0.00012579,2]
[403095739,1769153702643,-500.0,0.00012579,2]
[403095740,1769153702723,-500.0,0.00012579,2]
[403095741,1769153702791,-500.0,0.00012579,2]
[403095742,1769153702858,-500.0,0.00012579,2]
[403095743,1769153702922,-500.0,0.00012579,2]
[403095744,1769153702990,-500.0,0.00012579,2]
[403095745,1769153703093,-500.0,0.00012579,2]
[403095746,1769153703180,-500.0,0.00012579,2]
[403095747,1769153703277,-500.0,0.00012579,2]
[403095748,1769153703682,-500.0,0.00012579,2]
[403095749,1769153703768,-500.0,0.00012579,2]
[403095750,1769153703852,-589.04159458,0.00012579,2]
[403095751,1769153703942,-500.0,0.00012579,2]
[403095752,1769153704024,-500.0,0.00012579,2]
[403095753,1769153704105,-500.0,0.00012579,2]
[403095754,1769153704190,-500.0,0.00012579,2]
[403095755,1769153704278,-500.0,0.00012579,2]
[403095756,1769153704361,-500.0,0.00012579,2]
[403095757,1769153704449,-321.92681084,0.00012579,2]
[403095758,1769153709419,-178.07318916,0.00012579,2]
[403095759,1769153709446,-500.0,0.00012579,2]
[403095760,1769153709471,-321.92681084,0.00012579,2]
[403095761,1769153709561,-178.07318916,0.00012579,2]
[403095762,1769153709644,-500.0,0.00012579,2]
[403095763,1769153709730,-500.0,0.00012579,2]
[403095764,1769153709822,-500.0,0.00012579,2]
[403095765,1769153709915,-500.0,0.00012579,2]
[403095766,1769153710005,-500.0,0.00012579,2]
[403095767,1769153714100,-1000.0,0.0001258,2]
[403095768,1769153714248,-221.33913174,0.0001258,2]
[403095769,1769153715674,-1000.0,0.0001258,2]
[403095770,1769153715771,-169.22917762,0.0001258,2]
[403095771,1769153716025,-1000.0,0.0001258,2]
[403095772,1769153716370,-1000.0,0.0001258,2]
[403095773,1769153716703,-609.43169064,0.0001258,2]
[403095774,1769153716730,-390.56830936,0.00012666,2]
[403095775,1769153717031,-806.84169064,0.00012666,2]
[403095776,1769153717056,-193.15830936,0.00012707,2]
[403095777,1769153717485,-1000.0,0.00012707,2]
[403095778,1769153717953,-1000.0,0.00012707,2]
[403095779,1769153718234,-1000.0,0.00012707,2]
[403095780,1769153718555,-1000.0,0.00012707,2]
[403095781,1769153718897,-806.84169064,0.00012707,2]
[403095782,1769153718924,-193.15830936,0.00012707,2]
[403095783,1769153719244,-1000.0,0.00012707,2]
[403095784,1769153719556,-1000.0,0.00012707,2]
[403095785,1769153719901,-1000.0,0.00012707,2]
[403095786,1769153720191,-205.13,0.00012707,2]
[403095787,1769153720260,-1000.0,0.00012707,2]
[403095788,1769153720598,-1000.0,0.00012707,2]
[403095789,1769153720928,-1000.0,0.00012707,2]
[403095790,1769153721276,-1000.0,0.00012707,2]
[403095791,1769153721663,-1000.0,0.00012707,2]
[403095792,1769153721998,-1000.0,0.00012707,2]
[403095793,1769153722357,-1000.0,0.00012707,2]
[403095794,1769153722982,-1000.0,0.00012707,2]
[403095795,1769153723038,-1000.0,0.00012707,2]
[403095796,1769153723331,-1000.0,0.00012707,2]
[403095797,1769153723369,-170.65413159,0.00012707,2]
[403095798,1769153723710,-1000.0,0.00012707,2]
[403095799,1769153724172,-1000.0,0.00012707,2]
[403095800,1769153724503,-1000.0,0.00012707,2]
[403095801,1769153724803,-195.61338128,0.00012707,2]
[403095802,1769153724836,-1000.0,0.00012707,2]
[403095803,1769153725224,-1000.0,0.00012707,2]
[403095804,1769153725555,-1000.0,0.00012707,2]
[403095805,1769153725885,-1000.0,0.00012707,2]
[403095806,1769153726235,-1000.0,0.00012707,2]
[403095807,1769153726604,-1000.0,0.0001258,2]
[403095808,1769153726977,-1000.0,0.0001258,2]
[403095809,1769153727411,-1000.0,0.0001258,2]
[403095810,1769153727482,-185.43830936,0.0001258,2]
[403095811,1769153727855,-1000.0,0.0001258,2]
[403095812,1769153728241,-814.56169064,0.0001258,2]
[403095813,1769153728472,-185.43830936,0.00012707,2]
[403095814,1769153728608,-1000.0,0.00012707,2]
[403095815,1769153729040,-1000.0,0.00012707,2]
[403095816,1769153729415,-293.65634691,0.00012707,2]
[403095817,1769153729498,-1000.0,0.00012707,2]
[403095818,1769153729926,-1000.0,0.00012707,2]
[403095819,1769153730243,-1000.0,0.00012707,2]
[403095820,1769153730616,-1000.0,0.00012707,2]
[403095821,1769153730968,-1000.0,0.00012707,2]
[403095822,1769153731417,-1000.0,0.00012707,2]
[403095823,1769153731770,-1000.0,0.00012707,2]
[403095824,1769153732123,-177.45070384,0.00012707,2]
[403095825,1769153733436,-1000.0,0.00012707,2]
[403095826,1769153734605,-1000.0,0.00012707,2]
[403095827,1769153735373,-1000.0,0.00012707,2]
[403095828,1769153736681,-1000.0,0.00012707,2]
[403095829,1769153738863,-1000.0,0.00012707,2]
[403095832,1769153743322,-5000.0,0.0001258,2]
[403095833,1769153745695,-700.0,0.00012707,2]
[403095834,1769153756133,155.93,7.653e-05,2]
[403095835,1769153756534,311.86,8.348e-05,2]
[403095836,1769153756938,467.79,9.044e-05,2]
[403095837,1769153757343,623.72,9.74e-05,2]
[403095838,1769153757749,779.65,0.00010435,2]
[403095839,1769153758166,935.58,0.00011131,2]
[403095840,1769153758568,1091.51,0.00011827,2]
[403095841,1769153764911,5000.0,0.00012437,2]
[403095842,1769153786956,633.97,0.00012437,2]
[403095843,1769153787031,4366.03,0.00012437,2]
[403095844,1769153796834,-1247.44,0.00012523,2]
[403095845,1769153807820,-1000.0,0.0001258,2]
[403095846,1769153809154,5000.0,0.00012523,2]
[403095847,1769153809301,-658.0988743,0.0001258,2]
[403095848,1769153813262,-300.0,0.00012706,2]
[403095849,1769153831258,203.95,7.661e-05,2]
[403095850,1769153831361,5000.0,0.00012706,2]
[403095851,1769153831673,407.9,8.358e-05,2]
[403095852,1769153832071,611.85,9.054e-05,2]
[403095853,1769153832509,815.81,9.751e-05,2]
[403095854,1769153832907,1019.76,0.00010447,2]
[403095855,1769153833330,1223.71,0.00011144,2]
[403095856,1769153833741,717.03,0.0001184,2]
[403095857,1769153833818,710.63,0.0001184,2]
[403095858,1769153834135,1631.61,0.00012537,2]
[403095859,1769153853760,5000.0,0.00012707,2]
[403095860,1769153876088,2657.77,0.00012707,2]
[403095861,1769153876157,2342.23,0.00012707,2]
[403095862,1769153898951,5000.0,0.00012707,2]
[403095863,1769153913621,241.34,7.589e-05,2]
[403095864,1769153914050,482.68,8.279e-05,2]
[403095865,1769153914462,724.03,8.968e-05,2]
[403095866,1769153914878,965.37,9.658e-05,2]
[403095867,1769153915320,1206.71,0.00010348,2]
[403095868,1769153915816,1448.05,0.00011038,2]
[403095869,1769153916260,1689.39,0.00011728,2]
[403095870,1769153916656,1930.73,0.00012418,2]
[403095871,1769153930210,5000.0,0.00012437,2]
[403095872,1769153932451,-1000.0,0.0001258,2]
[403095873,1769153934591,-1000.0,0.0001258,2]
[403095874,1769153935725,-1000.0,0.0001258,2]
[403095875,1769153936641,-1000.0,0.0001258,2]
[403095876,1769153937744,-1000.0,0.0001258,2]
[403095877,1769153938974,-1000.0,0.00012707,2]
[403095878,1769153940056,-1000.0,0.00012707,2]
[403095879,1769153941235,-1000.0,0.00012707,2]
[403095880,1769153942495,-1000.0,0.00012707,2]
[403095881,1769153943559,-1000.0,0.00012707,2]
[403095882,1769153945934,5000.0,0.0001258,2]
[403095883,1769153950175,-500.0,0.00012707,2]
[403095884,1769153963482,400.24411106,0.00012706,2]
[403095885,1769153965005,300.75247148,0.00012706,2]
[403095886,1769153967024,500.0,0.00012706,2]
[403095887,1769153967092,500.0,0.00012706,2]
[403095888,1769153967162,500.0,0.00012706,2]
[403095889,1769153967236,500.0,0.00012706,2]
[403095890,1769153967312,500.0,0.00012706,2]
[403095891,1769153967382,500.0,0.00012706,2]
[403095892,1769153967450,500.0,0.00012706,2]
[403095893,1769153967516,500.0,0.00012706,2]
[403095894,1769153967581,299.01341746,0.00012706,2]
[403095895,1769153967640,200.98658254,0.00012706,2]
[403095896,1769153967709,500.0,0.00012706,2]
[403095897,1769153967780,500.0,0.00012706,2]
[403095898,1769153967845,500.0,0.00012706,2]
[403095899,1769153967911,500.0,0.00012706,2]
[403095900,1769153967979,500.0,0.00012706,2]
[403095901,1769153968294,493.28427437,0.00012706,2]
[403095902,1769153968368,500.0,0.00012706,2]
[403095903,1769153968445,500.0,0.00012706,2]
[403095904,1769153968516,500.0,0.00012706,2]
[403095905,1769153968583,500.0,0.00012706,2]
[403095906,1769153968647,500.0,0.00012706,2]
[403095907,1769153968712,500.0,0.00012706,2]
[403095908,1769153968779,500.0,0.00012706,2]
[403095909,1769153968846,500.0,0.00012706,2]
[403095910,1769153968913,500.0,0.00012706,2]
[403095911,1769153968985,500.0,0.00012706,2]
[403095912,1769153969053,500.0,0.00012706,2]
[403095913,1769153969129,500.0,0.00012706,2]
[403095914,1769153969202,500.0,0.00012706,2]
[403095915,1769153969270,305.73914309,0.00012707,2]
[403095916,1769153969334,4694.26085691,0.00012707,2]
[403095917,1769153969402,500.0,0.00012706,2]
[403095918,1769153969470,500.0,0.00012706,2]
[403095919,1769153969539,500.0,0.00012706,2]
[403095920,1769153969609,500.0,0.00012706,2]
[403095921,1769153969678,500.0,0.00012706,2]
[403095922,1769153969743,500.0,0.00012706,2]
[403095923,1769153969812,500.0,0.00012706,2]
[403095924,1769153975801,1805.74914309,0.00012707,2]
[403095925,1769153975862,2618.26085691,0.00012707,2]
[403095926,1769153990333,327.71,7.621e-05,2]
[403095927,1769153990783,655.42,8.314e-05,2]
[403095928,1769153990897,-9655.59443655,0.00012707,2]
[403095929,1769153991372,-983.13,9.007e-05,2]
[403095930,1769153991448,-9016.88,0.00012707,2]
[403095931,1769153991503,-983.13,0.00012707,2]
[403095932,1769153991556,-8033.75,0.00012707,2]
[403095933,1769153991630,-5000.0,0.0001258,2]
[403095934,1769153991768,-0.01,9.7e-05,2]
[403095935,1769153991833,-1310.83,9.7e-05,2]
[403095936,1769153991942,-7378.35,0.00012707,2]
[403095937,1769153996967,-1638.55,0.00010392,2]
[403095938,1769153997338,-192.19512637,0.00011085,2]
[403095939,1769154003133,-314.45,0.00010974,2]
[403095940,1769154005450,-1.69266436,0.00010974,2]
[403095941,1769154005474,-192.10291562,0.00010974,2]
[403095942,1769154008078,-381.89708438,0.00010974,2]
[403095943,1769154008108,-152.63050372,0.00011085,2]
[403095944,1769154011899,-367.28380367,0.00011085,2]
[403095945,1769154013268,-1254.15056624,0.00011085,2]
[403095946,1769154016637,-301.04548921,0.00011709,2]
[403095947,1769154018939,-1000.0,0.00011709,2]
[403095948,1769154019294,-320.26960086,0.00011709,2]
[403095949,1769154026265,-1000.0,0.00011709,2]
[403095950,1769154028841,-1000.0,0.00011709,2]
[403095951,1769154028925,-1378.68490993,0.00011709,2]
[403095952,1769154029868,-1000.0,0.00011778,2]
[403095953,1769154035771,-1000.0,0.00011778,2]
[403095954,1769154036813,-293.97,0.00011778,2]
[403095955,1769154037220,706.03,0.00011709,2]
[403095956,1769154037300,4293.97,0.00011709,2]
[403095957,1769154059694,5000.0,0.00012431,2]
[403095958,1769154068138,219.43,7.612e-05,2]
[403095959,1769154068561,438.86,8.304e-05,2]
[403095960,1769154069011,658.29,8.996e-05,2]
[403095961,1769154069492,877.72,9.688e-05,2]
[403095962,1769154069876,1097.14,0.0001038,2]
[403095963,1769154070304,1316.57,0.00011072,2]
[403095964,1769154070697,392.0,0.00011764,2]
[403095965,1769154070780,1144.0,0.00011764,2]
[403095966,1769154078939,190.27,0.00012329,2]
[403095967,1769154082726,5000.0,0.00012435,2]
[403095968,1769154089313,158.56,0.00012329,2]
[403095969,1769154099673,792.82,0.00012329,2]
[403095970,1769154105335,3858.36,0.00012435,2]
[403095971,1769154105404,1141.64,0.00012435,2]
[403095973,1769154127148,5000.0,0.00012435,2]
[403095974,1769154149055,3858.37,0.00012435,2]
[403095975,1769154149125,1141.63,0.00012435,2]
[403095976,1769154150349,244.19,7.537e-05,2]
[403095977,1769154150749,488.38,8.222e-05,2]
[403095978,1769154151170,732.57,8.907e-05,2]
[403095979,1769154151568,976.76,9.592e-05,2]
[403095980,1769154151981,1220.95,0.00010277,2]
[403095981,1769154152430,1465.14,0.00010962,2]
[403095982,1769154152812,1709.34,0.00011647,2]
[403095983,1769154153308,1953.53,0.00012332,2]
[403095984,1769154171005,67.52,0.00012435,2]
[403095985,1769154171075,4932.48,0.00012435,2]
[403095986,1769154193052,5000.0,0.00012435,2]
[403095987,1769154201925,67.53,0.00012329,2]
[403095988,1769154201990,305.77,0.00012329,2]
[403095989,1769154215142,5000.0,0.00012435,2]
[403095990,1769154226258,276.16,7.555e-05,2]
[403095991,1769154226706,552.32,8.242e-05,2]
[403095992,1769154227111,828.48,8.928e-05,2]
[403095993,1769154227548,1104.63,9.615e-05,2]
[403095994,1769154227977,1380.79,0.00010302,2]
[403095995,1769154228393,551.86,0.00010989,2]
[403095996,1769154228457,1105.09,0.00010989,2]
[403095997,1769154228811,1933.11,0.00011675,2]
[403095998,1769154229303,2209.27,0.00012362,2]
[403095999,1769154237685,4752.54,0.00012435,2]
[403096000,1769154237746,247.46,0.00012435,2]
[403096001,1769154259607,5000.0,0.00012435,2]
[403096002,1769154282866,5000.0,0.00012323,2]
[403096003,1769154302448,191.74,7.614e-05,2]
[403096004,1769154302950,383.48,8.306e-05,2]
[403096005,1769154303395,575.21,8.998e-05,2]
[403096006,1769154303830,766.95,9.691e-05,2]
[403096007,1769154304232,958.69,0.00010383,2]
[403096008,1769154304656,1150.43,0.00011075,2]
[403096009,1769154305074,1342.17,0.00011767,2]
[403096010,1769154305177,4631.34,0.00012387,2]
[403096011,1769154305250,368.66,0.00012387,2]
[403096012,1769154369304,-217.64784006,0.00012311,2]
[403096013,1769154380605,246.82,8.305e-05,2]
[403096014,1769154381011,370.23,8.997e-05,2]
[403096015,1769154381423,493.64,9.69e-05,2]
[403096016,1769154381835,617.05,0.00010382,2]
[403096017,1769154382273,740.46,0.00011074,2]
[403096018,1769154382941,863.87,0.00011766,2]
[403096026,1769154433803,10000.01,0.00011459,2]
[403096027,1769154433865,9557.6622614,0.00011459,2]
[403096028,1769154440187,442.3477386,0.00012111,2]
[403096029,1769154440251,479.6681942,0.00012111,2]
[403096030,1769154460839,150.0,8.142e-05,2]
[403096031,1769154461244,242.95,8.882e-05,2]
[403096032,1769154461691,364.42,9.622e-05,2]
[403096033,1769154462118,485.9,0.00010363,2]
[403096034,1769154462563,607.37,0.00011103,2]
[403096035,1769154462966,728.84,0.00011843,2]
[403096036,1769154470032,4484.33,0.00011998,2]
[403096042,1769154512551,2835.1901475,0.00011933,2]
[403096047,1769154519834,2680.4898525,0.00011998,2]
[403096048,1769154519894,2319.5101475,0.00011998,2]
[403096054,1769154535277,1090.21382486,0.00011998,2]
[403096055,1769154539590,150.0,8.114e-05,2]
[403096056,1769154540008,265.52,8.851e-05,2]
[403096057,1769154540425,398.28,9.589e-05,2]
[403096058,1769154540835,531.04,0.00010326,2]
[403096059,1769154541257,663.81,0.00011064,2]
[403096060,1769154541655,796.57,0.00011802,2]
[403096061,1769154543635,3785.06602764,0.00011998,2]
[403096062,1769154543715,1214.93397236,0.00011998,2]
[403096063,1769154565806,5000.0,0.00011998,2]
[403096064,1769154588375,3785.07602764,0.00011998,2]
[403096065,1769154588453,1214.92397236,0.00011998,2]
[403096066,1769154604558,185.9,5e-05,2]
[403096067,1769154611448,5000.0,0.00011998,2]
[403096071,1769154618156,278.92,9.01e-05,2]
[403096072,1769154618585,418.38,9.76e-05,2]
[403096073,1769154618994,557.84,0.00010511,2]
[403096074,1769154619396,697.3,0.00011262,2]
[403096075,1769154622365,-239.65763146,0.00012013,2]
[403096076,1769154627376,700.0,0.00011998,2]
[403096083,1769154631837,-597.10236854,0.00012013,2]
[403096084,1769154631846,-2926.48596777,0.00012188,2]
[403096085,1769154631854,-279.55317799,0.00012188,2]
[403096086,1769154635144,946.74602764,0.00011998,2]
[403096087,1769154635220,4053.25397236,0.00011998,2]
[403096111,1769154637877,-312.44682201,0.00012188,2]
[403096112,1769154637886,-192.20771924,0.0001225,2]
[403096113,1769154637895,-244.34,0.00012329,2]
[403096114,1769154637904,-232.52,0.00012453,2]
[403096115,1769154637913,-632.02509007,0.00012455,2]
[403096116,1769154637922,-433.60032876,0.00012455,2]
[403096117,1769154637931,-500.0,0.00012455,2]
[403096118,1769154637940,-500.0,0.00012455,2]
[403096119,1769154637948,-500.0,0.00012455,2]
[403096120,1769154637958,-500.0,0.00012455,2]
[403096121,1769154637970,-500.0,0.00012455,2]
[403096122,1769154637979,-500.0,0.00012455,2]
[403096123,1769154637988,-500.0,0.00012455,2]
[403096124,1769154637997,-500.0,0.00012455,2]
[403096125,1769154638009,-500.0,0.00012455,2]
[403096127,1769154638019,-500.0,0.00012455,2]
[403096128,1769154638027,-500.0,0.00012455,2]
[403096130,1769154638037,-500.0,0.00012455,2]
[403096132,1769154638046,-500.0,0.00012455,2]
[403096134,1769154638055,-500.0,0.00012455,2]
[403096136,1769154638064,-500.0,0.00012455,2]
[403096138,1769154638074,-500.0,0.00012455,2]
[403096140,1769154638083,-500.0,0.00012455,2]
[403096142,1769154638093,-500.0,0.00012455,2]
[403096144,1769154638102,-500.0,0.00012455,2]
[403096146,1769154638112,-249.32842743,0.00012455,2]
[403096148,1769154638121,-500.0,0.00012455,2]
[403096150,1769154638131,-500.0,0.00012455,2]
[403096152,1769154638140,-500.0,0.00012455,2]
[403096154,1769154638149,-500.0,0.00012455,2]
[403096156,1769154638158,-500.0,0.00012455,2]
[403096158,1769154638167,-486.6725281,0.00012455,2]
[403096160,1769154638176,-500.0,0.00012455,2]
[403096162,1769154638185,-500.0,0.00012455,2]
[403096164,1769154638195,-500.0,0.00012455,2]
[403096166,1769154638204,-500.0,0.00012455,2]
[403096168,1769154638213,-500.0,0.00012455,2]
[403096170,1769154638222,-500.0,0.00012455,2]
[403096172,1769154638231,-500.0,0.00012455,2]
[403096174,1769154638244,-547.09825701,0.00012455,2]
[403096175,1769154638253,-500.0,0.00012455,2]
[403096176,1769154638263,-500.0,0.00012455,2]
[403096177,1769154638272,-500.0,0.00012455,2]
[403096179,1769154638281,-500.0,0.00012455,2]
[403096181,1769154638290,-500.0,0.00012455,2]
[403096182,1769154638299,-500.0,0.00012455,2]
[403096183,1769154638307,-500.0,0.00012455,2]
[403096184,1769154638316,-500.0,0.00012455,2]
[403096185,1769154638326,-500.0,0.00012455,2]
[403096186,1769154638335,-500.0,0.00012455,2]
[403096187,1769154638344,-500.0,0.00012455,2]
[403096188,1769154638353,-500.0,0.00012455,2]
[403096189,1769154638363,-500.0,0.00012455,2]
[403096190,1769154638372,-500.0,0.00012455,2]
[403096191,1769154638382,-500.0,0.00012455,2]
[403096192,1769154638391,-271.03614648,0.00012455,2]
[403096193,1769154638400,-500.0,0.00012455,2]
[403096194,1769154638410,-500.0,0.00012455,2]
[403096195,1769154638419,-500.0,0.00012455,2]
[403096196,1769154638428,-500.0,0.00012455,2]
[403096197,1769154638437,-500.0,0.00012455,2]
[403096198,1769154638446,-513.61748873,0.00012455,2]
[403096199,1769154638455,-500.0,0.00012455,2]
[403096200,1769154638464,-500.0,0.00012455,2]
[403096201,1769154638473,-500.0,0.00012455,2]
[403096202,1769154638484,-500.0,0.00012455,2]
[403096203,1769154638493,-500.0,0.00012455,2]
[403096204,1769154638502,-500.0,0.00012455,2]
[403096205,1769154638512,-500.0,0.00012455,2]
[403096206,1769154638521,-500.0,0.00012455,2]
[403096207,1769154638530,-500.0,0.00012455,2]
[403096208,1769154638539,-500.0,0.00012455,2]
[403096209,1769154638549,-500.0,0.00012455,2]
[403096210,1769154638821,-500.0,0.00012455,2]
[403096211,1769154638830,-500.0,0.00012455,2]
[403096212,1769154638840,-500.0,0.00012455,2]
[403096213,1769154638850,-500.0,0.00012457,2]
[403096214,1769154638859,-717.8199656,0.00012464,2]
[403096215,1769154638868,-480.47191234,0.00012464,2]
[403096216,1769154638878,-3057.24592929,0.00012631,2]
[403096217,1769154638887,-500.0,0.00012731,2]
[403096218,1769154638896,-976.22,0.00012763,2]
[403096219,1769154638906,-300.0,0.0001296,2]
[403096220,1769154638915,-300.0,0.0001296,2]
[403096221,1769154638923,-300.0,0.0001296,2]
[403096222,1769154638933,-300.0,0.0001296,2]
[403096223,1769154638942,-300.0,0.0001296,2]
[403096224,1769154638951,-300.0,0.0001296,2]
[403096225,1769154638960,-300.0,0.0001296,2]
[403096226,1769154638974,-300.0,0.0001296,2]
[403096227,1769154638983,-300.0,0.0001296,2]
[403096228,1769154638992,-300.0,0.0001296,2]
[403096229,1769154639003,-300.0,0.0001296,2]
[403096230,1769154639013,-300.0,0.0001296,2]
[403096231,1769154639023,-300.0,0.0001296,2]
[403096232,1769154639033,-300.0,0.0001296,2]
[403096233,1769154639043,-300.0,0.0001296,2]
[403096234,1769154639052,-155.0,0.00013176,2]
[403096235,1769154639061,-500.0,0.00013273,2]
[403096236,1769154639070,-500.0,0.00013273,2]
[403096237,1769154639080,-548.80962332,0.00013273,2]
[403096238,1769154639089,-500.0,0.00013273,2]
[403096239,1769154639099,-500.0,0.00013273,2]
[403096240,1769154639108,-218.36195689,0.00013273,2]
[403096241,1769154639118,-165.85487306,0.00013273,2]
[403096242,1769154639127,-500.0,0.00013273,2]
[403096243,1769154639136,-500.0,0.00013273,2]
[403096244,1769154639146,-500.0,0.00013273,2]
[403096245,1769154639156,-500.0,0.00013273,2]
[403096246,1769154639166,-501.46601283,0.00013273,2]
[403096247,1769154639176,-501.83727549,0.00013273,2]
[403096248,1769154639185,-500.0,0.00013273,2]